fUSD/lending_fUSD_20260402
["ID","MTS","AMOUNT","RATE_DAILY","PERIOD"]
[419297472,1775125848367,-150.0,0.00015945,2]
[419297473,1775125848376,-150.00000001,0.00015945,2]
[419297474,1775125848385,-150.0,0.00015945,2]
[419297475,1775125848395,-150.0,0.00015945,2]
[419297476,1775125848404,-12004.96673852,0.00015956,2]
[419297477,1775125848414,-4020.34449656,0.00015956,2]
[419297478,1775125848423,-1524.0,0.00015967,2]
[419297479,1775125848432,-1524.0,0.00015967,2]
[419297480,1775125848442,-1524.0,0.00015967,2]
[419297481,1775125848451,-1524.0,0.00015967,2]
[419297482,1775125848461,-183.57157804,0.00015967,2]
[419297483,1775125848470,-1524.0,0.00015967,2]
[419297484,1775125848480,-1524.0,0.00015967,2]
[419297485,1775125848490,-1524.0,0.00015967,2]
[419297486,1775125848499,-965.65793482,0.00015967,2]
[419297487,1775125848509,-152.0,0.00015967,2]
[419297488,1775125848518,-152.35058231,0.00015967,2]
[419297489,1775125848528,-400.0,0.0001597,2]
[419297490,1775125848537,-500.70581269,0.0001597,2]
[419297491,1775125848547,-1930.89693021,0.0001597,2]
[419297492,1775125848557,-163.0,0.00015977,2]
[419297493,1775125848566,-500.0,0.00015994,2]
[419297494,1775125848575,-151.0,0.00015997,2]
[419297495,1775125848585,-151.0,0.00015997,2]
[419297496,1775125848594,-151.0,0.00015997,2]
[419297497,1775125848603,-151.0,0.00015997,2]
[419297498,1775125848612,-500.0,0.00015998,2]
[419297499,1775125848622,-500.0,0.00015998,2]
[419297500,1775125848631,-500.0,0.00015998,2]
[419297501,1775125848641,-500.0,0.00015998,2]
[419297502,1775125848650,-500.0,0.00015998,2]
[419297503,1775125848660,-500.0,0.00015998,2]
[419297504,1775125848669,-500.0,0.00015998,2]
[419297505,1775125848679,-500.0,0.00015998,2]
[419297506,1775125848690,-500.0,0.00015998,2]
[419297507,1775125848701,-129382.3999076,0.00015999,2]
[419297508,1775125848711,-8407.8928264,0.00015999,2]
[419297509,1775125848722,-5793.1717588,0.00015999,2]
[419297510,1775125848733,-500.0,0.00015999,2]
[419297511,1775125848743,-500.0,0.00015999,2]
[419297512,1775125848752,-381.5772541,0.00015999,2]
[419297513,1775125848763,-505.82795553,0.00015999,2]
[419297514,1775125848774,-152.1259059,0.00015999,2]
[419297515,1775125848786,-588.43649444,0.00015999,2]
[419297516,1775125848797,-500.0,0.00015999,2]
[419297517,1775125848807,-500.0,0.00015999,2]
[419297518,1775125848817,-500.0,0.00015999,2]
[419297519,1775125848827,-8392.5910814,0.00015999,2]
[419297520,1775125848836,-500.0,0.00015999,2]
[419297521,1775125848847,-500.0,0.00015999,2]
[419297522,1775125848857,-500.0,0.00015999,2]
[419297523,1775125848867,-1775.4895946,0.00015999,2]
[419297524,1775125848876,-150.73916309,0.00015999,2]
[419297525,1775125848886,-500.0,0.00015999,2]
[419297526,1775125848896,-500.0,0.00015999,2]
[419297527,1775125848907,-500.0,0.00015999,2]
[419297528,1775125848918,-500.0,0.00015999,2]
[419297529,1775125848929,-581.88386575,0.00015999,2]
[419297530,1775125848939,-500.0,0.00015999,2]
[419297531,1775125848948,-500.0,0.00015999,2]
[419297532,1775125848957,-500.0,0.00015999,2]
[419297533,1775125848967,-500.0,0.00015999,2]
[419297534,1775125848976,-500.0,0.00015999,2]
[419297535,1775125848985,-500.0,0.00015999,2]
[419297536,1775125848995,-500.0,0.00015999,2]
[419297537,1775125849004,-500.0,0.00015999,2]
[419297538,1775125849014,-500.0,0.00015999,2]
[419297539,1775125849024,-500.0,0.00015999,2]
[419297540,1775125849033,-500.0,0.00015999,2]
[419297541,1775125849042,-500.0,0.00015999,2]
[419297542,1775125849052,-500.0,0.00015999,2]
[419297543,1775125849061,-1995.9130478,0.00015999,2]
[419297544,1775125849071,-549.05,0.00015999,2]
[419297545,1775125849080,-549.05,0.00015999,2]
[419297546,1775125849089,-549.05,0.00015999,2]
[419297547,1775125849098,-549.05,0.00015999,2]
[419297548,1775125849107,-327209.38150994,0.00016,2]
[419297549,1775125849117,-478417.36965744,0.00016,2]
[419297550,1775125849126,-23130.86086076,0.00016,2]
[419297551,1775125849136,-2000.0,0.00016,2]
[419297552,1775125849146,-200.0,0.00016,2]
[419297553,1775125849156,-198.06220285,0.00016,2]
[419297554,1775125849165,-268.53713314,0.00016,2]
[419297555,1775125849176,-200.0,0.00016,2]
[419297556,1775125849187,-153.553062,0.00016,2]
[419297557,1775125849196,-153.553062,0.00016,2]
[419297558,1775125849205,-166.715039,0.00016,2]
[419297559,1775125849215,-166.715039,0.00016,2]
[419297560,1775125849224,-151.0,0.00016,2]
[419297561,1775125849233,-151.0,0.00016,2]
[419297562,1775125849243,-153.553062,0.00016,2]
[419297563,1775125849252,-153.553062,0.00016,2]
[419297564,1775125849262,-166.715039,0.00016,2]
[419297565,1775125849271,-166.715039,0.00016,2]
[419297566,1775125849281,-153.61229,0.00016,2]
[419297567,1775125849290,-153.553062,0.00016,2]
[419297568,1775125849300,-153.553062,0.00016,2]
[419297569,1775125849309,-166.715039,0.00016,2]
[419297570,1775125849319,-166.715039,0.00016,2]
[419297571,1775125849328,-153.553062,0.00016,2]
[419297572,1775125849337,-166.715039,0.00016,2]
[419297573,1775125849347,-153.553062,0.00016,2]
[419297574,1775125849358,-166.715039,0.00016,2]
[419297575,1775125849367,-200.0,0.00016,2]
[419297576,1775125849377,-151.0,0.00016,2]
[419297577,1775125849388,-151.0,0.00016,2]
[419297578,1775125849398,-151.0,0.00016,2]
[419297579,1775125849408,-151.0,0.00016,2]
[419297580,1775125849417,-181.321456,0.00016,2]
[419297581,1775125849427,-2000.0,0.00016,2]
[419297582,1775125849437,-313.0,0.00016,2]
[419297583,1775125849446,-468.2941765,0.00016,2]
[419297584,1775125849456,-151.0,0.00016,2]
[419297585,1775125849465,-151.0,0.00016,2]
[419297586,1775125849475,-151.0,0.00016,2]
[419297587,1775125849485,-151.0,0.00016,2]
[419297588,1775125849494,-202.203853,0.00016,2]
[419297589,1775125849503,-151.0,0.00016,2]
[419297590,1775125849513,-211.0,0.00016,2]
[419297591,1775125849522,-306.0,0.00016,2]
[419297592,1775125849531,-1372.71498046,0.00016,2]
[419297593,1775125849542,-821.836073,0.00016,2]
[419297594,1775125849551,-821.836073,0.00016,2]
[419297595,1775125849561,-821.836073,0.00016,2]
[419297596,1775125849671,-821.836073,0.00016,2]
[419297597,1775125849680,-821.836073,0.00016,2]
[419297598,1775125849690,-278.24927245,0.00016,2]
[419297599,1775125849700,-821.836073,0.00016,2]
[419297600,1775125849710,-821.836073,0.00016,2]
[419297601,1775125849721,-821.836073,0.00016,2]
[419297602,1775125849732,-200.0,0.00016,2]
[419297603,1775125849741,-462.329189,0.00016,2]
[419297604,1775125849751,-462.329189,0.00016,2]
[419297605,1775125849760,-312.217059,0.00016,2]
[419297606,1775125849771,-312.217059,0.00016,2]
[419297607,1775125849781,-462.329189,0.00016,2]
[419297608,1775125849791,-462.329189,0.00016,2]
[419297609,1775125849802,-1000.0,0.00016,2]
[419297610,1775125849812,-312.217059,0.00016,2]
[419297611,1775125849821,-312.217059,0.00016,2]
[419297612,1775125849831,-1000.0,0.00016,2]
[419297613,1775125849840,-462.329189,0.00016,2]
[419297614,1775125849850,-462.329189,0.00016,2]
[419297615,1775125849859,-312.217059,0.00016,2]
[419297616,1775125849871,-882.60643401,0.00016,2]
[419297617,1775125849881,-312.217059,0.00016,2]
[419297618,1775125849892,-462.329189,0.00016,2]
[419297619,1775125849902,-462.329189,0.00016,2]
[419297620,1775125849913,-312.217059,0.00016,2]
[419297621,1775125849924,-312.217059,0.00016,2]
[419297622,1775125849934,-1000.0,0.00016,2]
[419297623,1775125849944,-1251.00927162,0.00016,2]
[419297624,1775125849954,-288.09023334,0.00016,2]
[419297625,1775125849964,-200.0,0.00016,2]
[419297626,1775125849974,-160.0,0.00016,3]
[419297627,1775125849985,-169.0,0.00016,3]
[419297628,1775125849995,-167.0,0.00016,3]
[419297629,1775125850005,-350.0,0.00016003,2]
[419297630,1775125850015,-1571.0,0.00016003,2]
[419297631,1775125850025,-350.0,0.00016016,2]
[419297632,1775125850036,-5888.0,0.00016047,2]
[419297633,1775125850045,-278.24927245,0.000161,2]
[419297634,1775125850055,-5888.0,0.00016103,2]
[419297635,1775125850065,-200.0,0.00016115,2]
[419297636,1775125850076,-187.78006525,0.00016115,2]
[419297637,1775125850086,-433.0,0.00016124,2]
[419297638,1775125850096,-1600.0,0.00016138,2]
[419297639,1775125850106,-2000.0,0.00016138,2]
[419297640,1775125850116,-881.27,0.0001615,2]
[419297641,1775125850127,-1325.59545764,0.0001616,2]
[419297642,1775125850136,-200.0,0.0001616,2]
[419297643,1775125850146,-200.0,0.0001616,2]
[419297644,1775125850155,-200.0,0.0001616,2]
[419297645,1775125850165,-200.0,0.0001616,2]
[419297646,1775125850174,-151.3,0.0001617,2]
[419297647,1775125850184,-151.3,0.0001617,2]
[419297648,1775125850193,-151.3,0.0001617,2]
[419297649,1775125850202,-151.29,0.0001617,2]
[419297650,1775125850211,-350.0,0.00016183,2]
[419297651,1775125850220,-5000.00640717,0.000162,5]
[419297652,1775125850230,-2000.0,0.000162,2]
[419297653,1775125850239,-278.24927245,0.000162,2]
[419297654,1775125850250,-1000.0,0.0001627,2]
[419297655,1775125850259,-2476.0,0.00016276,2]
[419297656,1775125850269,-4000.0,0.00016282,2]
[419297657,1775125850278,-5888.0,0.00016296,2]
[419297658,1775125850288,-271.33049356,0.00016321,2]
[419297659,1775125850297,-163.10364202,0.00016322,2]
[419297660,1775125850306,-200.0,0.00016322,2]
[419297661,1775125850316,-200.0,0.00016322,2]
[419297662,1775125850325,-200.0,0.00016322,2]
[419297663,1775125850334,-200.0,0.00016322,2]
[419297664,1775125850343,-879.0,0.00016336,2]
[419297665,1775125850354,-500.0,0.00016376,2]
[419297666,1775125850363,-500.0,0.00016376,2]
[419297667,1775125850373,-325.34166394,0.00016376,2]
[419297668,1775125850382,-500.0,0.00016376,2]
[419297669,1775125850392,-500.0,0.00016376,2]
[419297670,1775125850401,-500.0,0.00016376,2]
[419297671,1775125850411,-30000.0,0.00016377,2]
[419297672,1775125850420,-350.0,0.00016378,2]
[419297673,1775125850430,-150.0,0.000164,2]
[419297674,1775125850439,-307.98744808,0.000164,2]
[419297675,1775125850448,-2000.0,0.000164,2]
[419297676,1775125850457,-2000.0,0.000164,2]
[419297677,1775125850467,-4923.0,0.00016413,2]
[419297678,1775125850476,-5888.0,0.0001642,2]
[419297679,1775125850486,-781.43,0.00016424,2]
[419297680,1775125850496,-1979.0,0.0001643,2]
[419297681,1775125850505,-657.0,0.0001643,2]
[419297682,1775125850515,-5888.0,0.00016431,2]
[419297683,1775125850524,-151.0,0.00016435,2]
[419297684,1775125850533,-549.05,0.00016437,2]
[419297685,1775125850543,-150.0,0.00016438,2]
[419297686,1775125850552,-441.0,0.00016438,2]
[419297687,1775125850562,-441.0,0.00016438,2]
[419297688,1775125850571,-441.0,0.00016438,2]
[419297689,1775125850580,-441.0,0.00016438,2]
[419297690,1775125850589,-441.0,0.00016438,2]
[419297691,1775125850599,-441.0,0.00016438,2]
[419297692,1775125850608,-441.0,0.00016438,2]
[419297693,1775125850617,-441.0,0.00016438,2]
[419297694,1775125850627,-441.0,0.00016438,2]
[419297695,1775125850636,-441.0,0.00016438,2]
[419297696,1775125850645,-441.0,0.00016438,2]
[419297697,1775125850655,-441.0,0.00016438,2]
[419297698,1775125850664,-441.0,0.00016438,2]
[419297699,1775125850673,-441.0,0.00016438,2]
[419297700,1775125850682,-441.0,0.00016438,2]
[419297701,1775125850691,-441.0,0.00016438,2]
[419297702,1775125850700,-441.0,0.00016438,2]
[419297703,1775125850710,-441.0,0.00016438,2]
[419297704,1775125850719,-441.0,0.00016438,2]
[419297705,1775125850728,-441.0,0.00016438,2]
[419297706,1775125850737,-441.0,0.00016438,2]
[419297707,1775125850747,-441.0,0.00016438,2]
[419297708,1775125850756,-441.0,0.00016438,2]
[419297709,1775125850765,-458.40261194,0.00016438,2]
[419297710,1775125850774,-250.0,0.00016438,2]
[419297711,1775125850783,-152.78,0.00016438,2]
[419297712,1775125850792,-154.340058,0.00016438,2]
[419297713,1775125850801,-152.0,0.00016438,2]
[419297714,1775125850810,-152.0,0.00016438,2]
[419297715,1775125850819,-152.0,0.00016438,2]
[419297716,1775125850828,-152.0,0.00016438,2]
[419297717,1775125850837,-292.0,0.00016438,2]
[419297718,1775125850846,-385.44,0.00016438,2]
[419297719,1775125850855,-151.0,0.00016438,2]
[419297720,1775125850865,-151.0,0.00016438,2]
[419297721,1775125850875,-151.0,0.00016438,2]
[419297722,1775125850885,-151.0,0.00016438,2]
[419297723,1775125850895,-2503.04138262,0.00016464,2]
[419297724,1775125850904,-2500.0,0.00016464,2]
[419297725,1775125850914,-350.0,0.00016481,2]
[419297726,1775125850924,-200.0,0.00016485,2]
[419297727,1775125850933,-200.0,0.00016485,2]
[419297728,1775125850945,-200.0,0.00016485,2]
[419297729,1775125850956,-200.0,0.00016485,2]
[419297730,1775125850967,-10650.50208496,0.00016487,2]
[419297731,1775125850976,-167.42,0.00016489,2]
[419297732,1775125850986,-151.11,0.00016493,2]
[419297733,1775125850996,-183.53395381,0.00016499,2]
[419297734,1775125851005,-300.0,0.00016499,2]
[419297735,1775125851014,-300.0,0.00016499,2]
[419297736,1775125851024,-300.0,0.00016499,2]
[419297737,1775125851035,-300.0,0.00016499,2]
[419297738,1775125851044,-300.0,0.00016499,2]
[419297739,1775125851054,-198.42239388,0.000165,7]
[419297740,1775125851063,-25124.33124936,0.000165,5]
[419297741,1775125851074,-150.04,0.000165,2]
[419297742,1775125851084,-5888.0,0.00016514,2]
[419297743,1775125851096,-162.0,0.00016519,2]
[419297744,1775125851108,-2476.0,0.00016531,2]
[419297745,1775125851118,-4923.0,0.0001654,2]
[419297746,1775125851128,-300.0,0.00016544,2]
[419297747,1775125851138,-5888.0,0.0001656,2]
[419297748,1775125851148,-2351.0,0.00016576,2]
[419297749,1775125851157,-2000.0,0.000166,2]
[419297750,1775125851166,-4923.0,0.00016601,2]
[419297751,1775125851176,-500.0,0.00016616,2]
[419297752,1775125851185,-1571.0,0.00016617,2]
[419297753,1775125851195,-189.0,0.00016617,2]
[419297754,1775125851204,-160.0,0.00016618,2]
[419297755,1775125851214,-150.0,0.00016618,30]
[419297756,1775125851225,-200.0,0.0001665,2]
[419297757,1775125851235,-200.0,0.0001665,2]
[419297758,1775125851245,-200.0,0.0001665,2]
[419297759,1775125851255,-200.0,0.0001665,2]
[419297760,1775125851264,-162.0,0.00016656,2]
[419297761,1775125851274,-2809.0,0.00016656,2]
[419297762,1775125851283,-536.98,0.00016658,2]
[419297763,1775125851292,-2061.26,0.00016658,2]
[419297764,1775125851302,-7867.76,0.00016658,2]
[419297765,1775125851311,-513.47,0.00016658,2]
[419297766,1775125851320,-166.29,0.00016659,2]
[419297767,1775125851329,-2392.02,0.0001666,2]
[419297768,1775125851339,-194.72792766,0.00016663,2]
[419297769,1775125851349,-350.0,0.00016665,2]
[419297770,1775125851358,-4000.0,0.0001667,2]
[419297771,1775125851367,-4923.0,0.00016674,2]
[419297772,1775125851376,-785.32,0.00016692,2]
[419297773,1775125851385,-157.21,0.00016712,2]
[419297774,1775125851394,-400.0,0.0001677,2]
[419297775,1775125851403,-1000.0,0.0001677,2]
[419297776,1775125851412,-2476.0,0.00016776,2]
[419297777,1775125851421,-4923.0,0.00016779,2]
[419297778,1775125851431,-4923.0,0.00016796,2]
[419297779,1775125851440,-151.0,0.00016796,2]
[419297780,1775125851449,-151.0,0.00016796,2]
[419297781,1775125851460,-2000.0,0.000168,2]
[419297782,1775125851468,-5888.0,0.00016813,2]
[419297783,1775125851478,-5888.0,0.00016814,2]
[419297784,1775125851487,-300.0,0.00016814,3]
[419297785,1775125851497,-300.0,0.00016814,3]
[419297786,1775125851506,-300.0,0.00016814,3]
[419297787,1775125851515,-300.0,0.00016814,3]
[419297788,1775125851524,-300.0,0.00016814,3]
[419297789,1775125851534,-153.553062,0.00016814,2]
[419297790,1775125851545,-166.715039,0.00016814,2]
[419297791,1775125851555,-151.0,0.00016814,2]
[419297792,1775125851565,-153.553062,0.00016814,2]
[419297793,1775125851576,-166.715039,0.00016814,2]
[419297794,1775125851586,-153.553062,0.00016814,2]
[419297795,1775125851596,-166.715039,0.00016814,2]
[419297796,1775125851606,-153.553062,0.00016814,2]
[419297797,1775125851615,-166.715039,0.00016814,2]
[419297798,1775125851625,-300.0,0.00016835,2]
[419297799,1775125851635,-300.0,0.00016835,2]
[419297800,1775125851645,-25771.10182962,0.00016836,2]
[419297801,1775125851655,-350.0,0.0001687,2]
[419297802,1775125851665,-14900.0,0.000169,6]
[419297803,1775125851675,-2809.0,0.00016937,2]
[419297804,1775125851686,-462.329189,0.00016937,2]
[419297805,1775125851696,-312.217059,0.00016937,2]
[419297806,1775125851706,-462.329189,0.00016937,2]
[419297807,1775125851716,-312.217059,0.00016937,2]
[419297808,1775125851727,-462.329189,0.00016937,2]
[419297809,1775125851740,-312.217059,0.00016937,2]
[419297810,1775125851750,-462.329189,0.00016937,2]
[419297811,1775125851759,-312.217059,0.00016937,2]
[419297812,1775125851770,-785.32,0.00016966,2]
[419297813,1775125851780,-400.0,0.0001697,2]
[419297814,1775125851790,-500.0,0.00016973,2]
[419297815,1775125851799,-422.59477887,0.0001699,2]
[419297816,1775125851811,-179.45926,0.00016997,2]
[419297817,1775125851821,-500.0,0.00016999,2]
[419297818,1775125851832,-500.0,0.00016999,2]
[419297819,1775125851843,-500.0,0.00016999,2]
[419297820,1775125851852,-500.0,0.00016999,2]
[419297821,1775125851861,-500.0,0.00016999,2]
[419297822,1775125851870,-500.0,0.00016999,2]
[419297823,1775125851879,-500.0,0.00016999,2]
[419297824,1775125851888,-300.0,0.00016999,2]
[419297825,1775125851898,-300.0,0.00016999,2]
[419297826,1775125851907,-300.0,0.00016999,2]
[419297827,1775125851916,-500.0,0.00016999,2]
[419297828,1775125851925,-500.0,0.00016999,2]
[419297829,1775125851936,-549.05,0.00016999,2]
[419297830,1775125851946,-549.05,0.00016999,2]
[419297831,1775125851955,-205134.76055453,0.00017,2]
[419297832,1775125852747,-12329.60617189,0.00017,2]
[419297833,1775125853679,-344.66,0.00017,2]
[419297834,1775125853691,-1394.20527465,0.00017,2]
[419297836,1775125869618,184.52886775,0.0001,2]
[419297837,1775125874394,457.83,0.00011094,2]
[419297838,1775125874743,1250.0,0.00011506,2]
[419297839,1775125874927,1000.0,0.00011857,2]
[419297840,1775125875610,970.0,0.00012109,2]
[419297841,1775125876297,900.0,0.00012393,2]
[419297842,1775125876959,730.0,0.00012745,2]
[419297843,1775125877694,493.38,0.00012826,2]
[419297844,1775125878237,756.24,0.00013147,2]
[419297845,1775125888840,13495.67113225,0.00013694,2]
[419297853,1775126123226,-294.0,9.999e-05,2]
[419297854,1775126123248,-300.0,9.999e-05,2]
[419297855,1775126123271,-406.0,9.999e-05,2]
[419297856,1775126124519,-794.0,9.999e-05,2]
[419297857,1775126124540,-206.0,9.999e-05,2]
[419297858,1775126125570,-94.0,9.999e-05,2]
[419297859,1775126125592,-515.16240557,0.0001,2]
[419297860,1775126125614,-390.83759443,0.0001,2]
[419297861,1775126126656,-35.57728529,0.0001,2]
[419297862,1775126126677,-426.41487972,0.0001,2]
[419297863,1775126126698,-188.03566457,0.0001,2]
[419297864,1775126126720,-171.09553155,0.0001,2]
[419297865,1775126126742,-150.14168293,0.0001,2]
[419297866,1775126126764,-28.73495594,0.00010999,2]
[419297867,1775126127988,-1000.0,0.00010999,2]
[419297868,1775126129037,-651.26504406,0.00010999,2]
[419297869,1775126129059,-310.0,0.00010999,2]
[419297870,1775126130650,38.73495594,0.00010999,2]
[419297871,1775126130721,-111.26504406,0.00010999,2]
[419297872,1775126130967,150.38719726,0.00010999,2]
[419297876,1775126193338,150.37,6.422e-05,2]
[419297878,1775126376344,-181.66573023,0.00011999,2]
[419297879,1775126376368,-327.0,0.00011999,2]
[419297889,1775127032564,-486.70861815,0.00011709,2]
[419297890,1775127032610,-18.73138185,0.00011709,2]
[419297891,1775127032621,-322.0,0.00011709,2]
[419297893,1775127032631,-793.0,0.0001177,2]
[419297895,1775127032641,-300.0,0.0001177,2]
[419297897,1775127032651,-1200.0,0.0001177,2]
[419297899,1775127032661,-28941.86,0.00011771,2]
[419297901,1775127032670,-200.0,0.00012234,2]
[419297903,1775127032680,-150.0,0.00012329,2]
[419297905,1775127032691,-150.0,0.00012329,2]
[419297906,1775127032701,-150.0,0.00012329,2]
[419297907,1775127032710,-150.0,0.00012329,2]
[419297908,1775127032720,-150.0,0.00012329,2]
[419297909,1775127032729,-150.0,0.00012329,2]
[419297910,1775127032740,-150.0,0.00012329,2]
[419297911,1775127032749,-150.0,0.00012329,2]
[419297912,1775127032759,-150.0,0.00012329,2]
[419297913,1775127032768,-150.0,0.00012329,2]
[419297914,1775127032778,-150.0,0.00012329,2]
[419297915,1775127032789,-150.0,0.00012329,2]
[419297916,1775127032798,-150.0,0.00012329,2]
[419297917,1775127032808,-150.0,0.00012329,2]
[419297918,1775127032909,-150.0,0.00012369,2]
[419297919,1775127032921,-150.0,0.00012369,2]
[419297920,1775127032932,-150.0,0.0001237,2]
[419297921,1775127032941,-150.0,0.00012373,2]
[419297922,1775127032949,-150.0,0.00012384,2]
[419297923,1775127032958,-150.0,0.00012405,2]
[419297924,1775127032968,-150.0,0.00012409,2]
[419297925,1775127032979,-150.0,0.00012409,2]
[419297926,1775127032988,-150.0,0.00012412,2]
[419297927,1775127032998,-150.0,0.00012417,2]
[419297928,1775127033009,-341.0,0.00012418,2]
[419297929,1775127033020,-150.0,0.00012434,2]
[419297930,1775127033029,-150.0,0.00012438,2]
[419297931,1775127033038,-150.0,0.0001245,2]
[419297932,1775127033047,-150.0,0.0001245,2]
[419297933,1775127033056,-150.0,0.00012453,2]
[419297934,1775127033065,-150.0,0.00012461,2]
[419297935,1775127033074,-150.0,0.00012481,2]
[419297936,1775127033084,-150.0,0.00012481,2]
[419297937,1775127033093,-150.0,0.0001249,2]
[419297938,1775127033103,-150.0,0.0001249,2]
[419297939,1775127033112,-150.0,0.00012493,2]
[419297940,1775127033121,-150.0,0.00012495,2]
[419297941,1775127033130,-150.0,0.00012506,2]
[419297942,1775127033139,-150.0,0.0001253,2]
[419297943,1775127033148,-150.0,0.0001253,2]
[419297944,1775127033158,-150.0,0.00012536,2]
[419297945,1775127033166,-150.0,0.00012536,2]
[419297946,1775127033176,-150.0,0.0001254,2]
[419297947,1775127033185,-150.0,0.00012548,2]
[419297948,1775127033194,-500.0,0.0001255,2]
[419297949,1775127033203,-150.0,0.0001255,2]
[419297950,1775127033213,-150.0,0.00012557,2]
[419297951,1775127033223,-150.0,0.00012571,2]
[419297952,1775127033231,-150.0,0.00012571,2]
[419297953,1775127033241,-150.0,0.00012578,2]
[419297954,1775127033251,-150.0,0.00012594,2]
[419297955,1775127033261,-150.0,0.00012603,2]
[419297956,1775127033271,-150.0,0.00012603,2]
[419297957,1775127033280,-150.0,0.00012611,2]
[419297958,1775127033289,-150.0,0.00012611,2]
[419297959,1775127033299,-150.0,0.00012619,2]
[419297960,1775127033311,-150.0,0.00012633,2]
[419297961,1775127033319,-150.0,0.00012633,2]
[419297962,1775127033329,-150.0,0.00012638,2]
[419297963,1775127033340,-150.0,0.00012645,2]
[419297964,1775127033351,-150.0,0.00012651,2]
[419297965,1775127033360,-150.0,0.00012651,2]
[419297966,1775127033369,-150.0,0.00012658,2]
[419297967,1775127033379,-150.0,0.00012661,2]
[419297968,1775127033389,-150.0,0.00012682,2]
[419297969,1775127033401,-150.0,0.00012691,2]
[419297970,1775127033411,-150.0,0.00012691,2]
[419297971,1775127033420,-500.30491238,0.000127,2]
[419297972,1775127033430,-500.47003133,0.000127,2]
[419297973,1775127033440,-500.0,0.000127,2]
[419297974,1775127033451,-500.0,0.000127,2]
[419297975,1775127033461,-500.0,0.000127,2]
[419297976,1775127033471,-500.0,0.000127,2]
[419297977,1775127033480,-165.99284076,0.000127,2]
[419297978,1775127033490,-500.0,0.000127,2]
[419297979,1775127033500,-150.0,0.00012702,2]
[419297980,1775127033510,-150.0,0.00012709,2]
[419297981,1775127033520,-150.0,0.00012712,2]
[419297982,1775127033531,-150.0,0.00012726,2]
[419297983,1775127033541,-150.0,0.00012732,2]
[419297984,1775127033551,-150.0,0.00012732,2]
[419297985,1775127033561,-4637.5,0.00012735,2]
[419297986,1775127033571,-150.0,0.00012744,2]
[419297987,1775127033581,-150.0,0.0001275,2]
[419297988,1775127033593,-150.0,0.00012767,2]
[419297989,1775127033603,-150.0,0.00012771,2]
[419297990,1775127033612,-150.0,0.00012772,2]
[419297991,1775127033621,-150.0,0.00012772,2]
[419297992,1775127033633,-150.0,0.00012785,2]
[419297993,1775127033642,-150.0,0.00012785,2]
[419297994,1775127033652,-150.0,0.00012785,2]
[419297995,1775127033661,-150.0,0.00012785,2]
[419297996,1775127033671,-240.09,0.00012789,2]
[419297997,1775127033681,-150.0,0.00012812,2]
[419297998,1775127033691,-150.0,0.00012812,2]
[419297999,1775127033701,-150.0,0.00012815,2]